[Event "XII Paracin Festival 2019"]
[Site "Paracin"]
[Date "2019.07.10"]
[Round "7.24"]
[White "Soysal, Serkan"]
[Black "Mullick, Raahil"]
[Result "1/2-1/2"]
[ECO "D17"]
[WhiteElo "2431"]
[BlackElo "2211"]
[Annotator "NA"]
[PlyCount "107"]
[EventDate "2019.07.05"]
[EventType "swiss"]
[EventCountry "SRB"]
[SourceTitle "playchess.com"]
[Source "ChessBase"]
[SourceQuality "1"]
[TimeControl "5400+30"]

1. d4 {[%emt 0:00:00]} d5 {[%emt 0:00:00]} 2. c4 {[%emt 0:00:00]} c6 {[%emt 0:00:01]} 3. Nc3 {[%emt 0:00:01]} dxc4 {[%emt 0:00:16]} 4. Nf3 {[%emt 0:01:59]} Nf6 {[%emt 0:00:52]} 5. a4 {[%emt 0:10:23]} Bf5 {[%emt 0:00:10]} 6. Ne5 {[%emt 0:01:38]} Nbd7 {[%emt 0:00:16]} 7. Nxc4 {[%emt 0:00:03]} Nb6 {[%emt 0:00:02]} 8. Ne5 {[%emt 0:00:44]} a5 {[%emt 0:00:03]} 9. e3 {[%emt 0:02:51]} h6 {[%emt 0:00:08]} 10. g4 {[%emt 0:06:11]} Bh7 {[%emt 0:02:46]} 11. h4 {[%emt 0:04:59]} e6 {[%emt 0:06:57]} 12. g5 {[%emt 0:05:29]} Nfd7 {[%emt 0:01:24]} 13. Nxd7 {[%emt 0:10:11]} Nxd7 {[%emt 0:01:41]} 14. Rg1 {[%emt 0:07:07]} hxg5 {[%emt 0:07:25]} 15. hxg5 {[%emt 0:00:53]} Bg6 {[%emt 0:01:14]} 16. Bd3 {[%emt 0:01:04]} Bh5 {[%emt 0:07:04]} 17. Be2 {[%emt 0:05:18]} Bg6 {[%emt 0:01:45]} 18. Bd3 {[%emt 0:00:15]} Bh5 {[%emt 0:01:25]} 19. Qc2 {[%emt 0:00:01]} Bb4 {[%emt 0:05:27]} 20. Bd2 {[%emt 0:04:07]} Qe7 {[%emt 0:06:17]} 21. g6 {[%emt 0:03:06]} f5 {[%emt 0:04:57]} 22. Ne2 {[%emt 0:02:52]} Bxe2 {[%emt 0:04:43]} 23. Kxe2 {[%emt 0:01:17]} Nf6 {[%emt 0:05:01]} 24. Qb3 {[%emt 0:08:03]} Bxd2 {[%emt 0:05:35]} 25. Kxd2 {[%emt 0:00:02]} Rh2 {[%emt 0:00:34]} 26. Rh1 {[%emt 0:01:28]} Rxh1 {[%emt 0:05:27]} 27. Rxh1 {[%emt 0:03:01]} O-O-O {[%emt 0:00:29]} 28. Qc3 {[%emt 0:09:36]} e5 {[%emt 0:10:48]} 29. Bxf5+ {[%emt 0:02:29]} Kb8 {[%emt 0:00:14]} 30. Kc1 {[%emt 0:00:31]} exd4 {[%emt 0:01:29]} 31. exd4 {[%emt 0:00:01]} Nd5 {[%emt 0:00:44]} 32. Qg3+ {[%emt 0:02:20]} Ka7 {[%emt 0:00:20]} 33. Bc2 {[%emt 0:00:58]} Qe2 {[%emt 0:02:22]} 34. Bd3 {[%emt 0:00:55]} Qe7 {[%emt 0:00:56]} 35. Rd1 {[%emt 0:02:23]} Rf8 {[%emt 0:01:38]} 36. Bc4 {[%emt 0:02:44]} Nb6 {[%emt 0:05:27]} 37. Bf7 {[%emt 0:00:16]} Nxa4 {[%emt 0:01:00]} 38. Qe5 {[%emt 0:01:17]} Qb4 {[%emt 0:00:27]} 39. Rd2 {[%emt 0:00:26]} Rh8 {[%emt 0:00:19]} 40. Qe4 {[%emt 0:02:28]} c5 {[%emt 0:00:52]} 41. Bd5 {[%emt 0:00:27]} c4 {[%emt 0:00:50]} 42. Rc2 {[%emt 0:00:24]} c3 {[%emt 0:01:13]} 43. b3 {[%emt 0:00:26]} Nb6 {[%emt 0:01:57]} 44. Ra2 {[%emt 0:00:21]} Qb5 {[%emt 0:01:52]} 45. Bc4 {[%emt 0:00:38]} Nxc4 {[%emt 0:01:55]} 46. bxc4 {[%emt 0:00:02]} Qxc4 {[%emt 0:00:02]} 47. Rxa5+ {[%emt 0:00:52]} Kb6 {[%emt 0:00:33]} 48. Qe5 {[%emt 0:00:50]} Qf1+ 49. Kc2 Qxf2+ {[%emt 0:00:56]} 50. Kb3 {[%emt 0:00:53]} Qb2+ {[%emt 0:00:20]} 51. Ka4 {[%emt 0:00:01]} Qa2+ {[%emt 0:06:02]} 52. Kb4 {[%emt 0:00:00]} Qb2+ {[%emt 0:00:01]} 53. Ka4 {[%emt 0:00:08]} Qa2+ {[%emt 0:00:51]} 54. Kb4 {[%emt 0:00:01]} 1/2-1/2

[Event "XII Paracin Festival 2019"]
[Site "Paracin"]
[Date "2019.07.10"]
[Round "7.25"]
[White "Lee, Jun Hyeok"]
[Black "Gandhi, Anish"]
[Result "1-0"]
[ECO "A34"]
[WhiteElo "2383"]
[BlackElo "2167"]
[Annotator "NA"]
[PlyCount "75"]
[EventDate "2019.07.05"]
[EventType "swiss"]
[EventCountry "SRB"]
[SourceTitle "playchess.com"]
[Source "ChessBase"]
[SourceQuality "1"]
[TimeControl "5400+30"]

1. Nf3 {[%emt 0:00:00]} Nf6 {[%emt 0:00:00]} 2. c4 {[%emt 0:00:06]} c5 {[%emt 0:00:00]} 3. Nc3 {[%emt 0:00:07]} d5 {[%emt 0:00:04]} 4. cxd5 {[%emt 0:00:05]} Nxd5 {[%emt 0:00:05]} 5. e4 {[%emt 0:00:05]} Nb4 {[%emt 0:01:13]} 6. Bc4 {[%emt 0:00:07]} Nd3+ {[%emt 0:00:36]} 7. Ke2 {[%emt 0:00:05]} Nf4+ {[%emt 0:00:06]} 8. Kf1 {[%emt 0:00:04]} Ne6 {[%emt 0:00:15]} 9. b4 {[%emt 0:00:05]} cxb4 {[%emt 0:01:34]} 10. Ne2 {[%emt 0:00:07]} Nc7 {[%emt 0:02:26]} 11. d4 {[%emt 0:00:24]} b5 {[%emt 0:05:09]} 12. Bd3 {[%emt 0:01:31]} g6 {[%emt 0:06:23]} 13. h4 {[%emt 0:02:43]} h5 {[%emt 0:01:06]} 14. e5 {[%emt 0:06:38]} Bf5 {[%emt 0:11:56]} 15. Bxf5 {[%emt 0:02:09]} gxf5 {[%emt 0:00:37]} 16. Qd3 {[%emt 0:01:49]} e6 {[%emt 0:01:26]} 17. Bg5 {[%emt 0:01:34]} Be7 {[%emt 0:04:50]} 18. Rc1 {[%emt 0:03:23]} Qd7 {[%emt 0:03:17]} 19. Nf4 {[%emt 0:03:08]} Nba6 {[%emt 0:03:11]} 20. d5 {[%emt 0:06:19]} Nxd5 {[%emt 0:05:27]} 21. Nxd5 {[%emt 0:00:10]} exd5 {[%emt 0:05:39]} 22. e6 {[%emt 0:01:09]} fxe6 {[%emt 0:01:44]} 23. Ne5 {[%emt 0:03:07]} Qb7 {[%emt 0:01:33]} 24. Rc6 {[%emt 0:07:42]} Bxg5 {[%emt 0:07:16]} 25. hxg5 {[%emt 0:00:12]} Nc7 {[%emt 0:00:10]} 26. Qc2 {[%emt 0:01:30]} O-O-O {[%emt 0:05:33]} 27. Nf7 {[%emt 0:03:21]} Kb8 {[%emt 0:03:19]} 28. Nxh8 {[%emt 0:11:05]} Rxh8 {[%emt 0:00:48]} 29. g6 {[%emt 0:00:28]} d4 {[%emt 0:01:54]} 30. g7 {[%emt 0:03:07]} Rc8 {[%emt 0:01:34]} 31. Rxh5 {[%emt 0:02:11]} d3 {[%emt 0:01:04]} 32. Qc5 {[%emt 0:00:06]} d2 {[%emt 0:03:03]} 33. Ke2 {[%emt 0:00:07]} Rd8 {[%emt 0:02:43]} 34. Kd1 {[%emt 0:01:26]} Qc8 {[%emt 0:05:04]} 35. Rxc7 {[%emt 0:01:24]} Qa6 {[%emt 0:00:12]} 36. Rxa7 {[%emt 0:01:14]} Qxa7 {[%emt 0:00:35]} 37. Qxa7+ {[%emt 0:00:08]} Kxa7 {[%emt 0:00:03]} 38. Rh8 {[%emt 0:00:06]} 1-0

[Event "XII Paracin Festival 2019"]
[Site "Paracin"]
[Date "2019.07.10"]
[Round "7.26"]
[White "Tadic, Stefan"]
[Black "Tanriverdi, Enes"]
[Result "1/2-1/2"]
[ECO "B49"]
[WhiteElo "2262"]
[BlackElo "2374"]
[Annotator "NA"]
[PlyCount "108"]
[EventDate "2019.07.05"]
[EventType "swiss"]
[EventCountry "SRB"]
[SourceTitle "playchess.com"]
[Source "ChessBase"]
[SourceQuality "1"]
[TimeControl "5400+30"]

1. e4 {[%emt 0:00:00]} c5 {[%emt 0:00:00]} 2. Nf3 {[%emt 0:00:00]} e6 {[%emt 0:00:00]} 3. d4 {[%emt 0:00:00]} cxd4 {[%emt 0:00:00]} 4. Nxd4 {[%emt 0:00:04]} Nc6 {[%emt 0:00:00]} 5. Nc3 {[%emt 0:00:12]} Qc7 {[%emt 0:00:00]} 6. Be3 {[%emt 0:00:21]} a6 {[%emt 0:00:00]} 7. Be2 {[%emt 0:00:48]} Nf6 {[%emt 0:00:23]} 8. a3 {[%emt 0:00:12]} Be7 {[%emt 0:00:12]} 9. f4 {[%emt 0:00:05]} d6 {[%emt 0:00:04]} 10. g4 {[%emt 0:00:18]} Nxd4 {[%emt 0:05:59]} 11. Qxd4 {[%emt 0:00:07]} e5 {[%emt 0:00:18]} 12. Qd2 {[%emt 0:00:13]} exf4 {[%emt 0:01:24]} 13. Bxf4 {[%emt 0:00:07]} Be6 {[%emt 0:00:03]} 14. g5 {[%emt 0:02:56]} Nd7 {[%emt 0:00:07]} 15. O-O-O {[%emt 0:01:06]} Ne5 {[%emt 0:01:13]} 16. Nd5 {[%emt 0:24:03]} Bxd5 {[%emt 0:02:57]} 17. exd5 {[%emt 0:01:08]} Ng6 {[%emt 0:08:40]} 18. h4 {[%emt 0:13:28]} Nxf4 {[%emt 0:04:01]} 19. Qxf4 {[%emt 0:00:41]} O-O {[%emt 0:01:10]} 20. Bd3 {[%emt 0:06:12]} Rae8 {[%emt 0:06:58]} 21. h5 {[%emt 0:15:53]} Bd8 {[%emt 0:01:03]} 22. Rde1 {[%emt 0:15:19]} Qa5 {[%emt 0:07:07]} 23. Rxe8 {[%emt 0:06:56]} Rxe8 {[%emt 0:00:37]} 24. c4 {[%emt 0:07:35]} Re5 {[%emt 0:03:31]} 25. Rg1 {[%emt 0:00:47]} Bb6 {[%emt 0:07:31]} 26. Qg4 {[%emt 0:00:33]} Be3+ {[%emt 0:25:46]} 27. Kb1 {[%emt 0:00:08]} Qd8 {[%emt 0:00:16]} 28. Re1 {[%emt 0:00:52]} Bxg5 {[%emt 0:00:17]} 29. Rxe5 {[%emt 0:00:07]} dxe5 {[%emt 0:00:05]} 30. Qf5 {[%emt 0:00:08]} g6 {[%emt 0:00:09]} 31. hxg6 {[%emt 0:00:16]} hxg6 {[%emt 0:00:02]} 32. Qxe5 {[%emt 0:00:10]} Bf6 {[%emt 0:00:14]} 33. Qe2 {[%emt 0:04:52]} Qb6 {[%emt 0:00:28]} 34. Qc2 {[%emt 0:00:27]} Qd4 {[%emt 0:00:49]} 35. Ka2 {[%emt 0:00:47]} a5 {[%emt 0:00:57]} 36. Be4 {[%emt 0:00:32]} Be7 {[%emt 0:00:22]} 37. Qd3 {[%emt 0:00:32]} Qe5 {[%emt 0:00:20]} 38. d6 {[%emt 0:00:29]} Bf6 {[%emt 0:01:37]} 39. Qc2 {[%emt 0:00:19]} Qxd6 {[%emt 0:00:55]} 40. Bxb7 {[%emt 0:00:05]} Bd4 {[%emt 0:00:03]} 41. Bd5 {[%emt 0:00:18]} Kg7 {[%emt 0:00:30]} 42. Qd2 {[%emt 0:01:04]} Qe5 {[%emt 0:00:33]} 43. Qxa5 {[%emt 0:00:37]} Bxb2 {[%emt 0:03:41]} 44. Qa7 {[%emt 0:00:05]} Bc1 {[%emt 0:01:34]} 45. Qxf7+ {[%emt 0:00:36]} Kh6 {[%emt 0:00:01]} 46. Qf8+ {[%emt 0:00:26]} Kg5 {[%emt 0:00:13]} 47. Qb4 {[%emt 0:00:39]} Qe2+ {[%emt 0:00:56]} 48. Kb1 {[%emt 0:00:50]} Bf4 {[%emt 0:01:05]} 49. Qb2 {[%emt 0:00:23]} Qd1+ {[%emt 0:00:35]} 50. Ka2 {[%emt 0:00:01]} Bc1 {[%emt 0:01:44]} 51. Qe5+ {[%emt 0:01:04]} Kh6 {[%emt 0:00:14]} 52. Qh8+ {[%emt 0:00:06]} Kg5 {[%emt 0:00:59]} 53. Qe5+ {[%emt 0:00:01]} Kh4 {[%emt 0:03:38]} 54. Qe4+ {[%emt 0:00:14]} Kg5 {[%emt 0:00:18]} 1/2-1/2

[Event "XII Paracin Festival 2019"]
[Site "Paracin"]
[Date "2019.07.10"]
[Round "7.27"]
[White "Sadykov, Ramil"]
[Black "Ozkan, Taha"]
[Result "1-0"]
[ECO "C02"]
[WhiteElo "2342"]
[BlackElo "2140"]
[Annotator "NA"]
[PlyCount "109"]
[EventDate "2019.07.05"]
[EventType "swiss"]
[EventCountry "SRB"]
[SourceTitle "playchess.com"]
[Source "ChessBase"]
[SourceQuality "1"]
[TimeControl "5400+30"]

1. e4 e6 2. d4 d5 3. e5 c5 4. Nf3 Qb6 5. Bd3 Nc6 6. dxc5 Bxc5 7. O-O Nge7 8. Nc3 Qd8 9. Na4 Bb4 10. c3 Ba5 11. Bf4 Bc7 12. Re1 b6 13. b4 Bb7 14. b5 Na5 15. Nb2 Qd7 16. a4 h6 17. h4 O-O-O 18. Nd4 Kb8 19. Qg4 Rdg8 20. h5 g6 21. Bh2 Nc4 22. Ra2 gxh5 23. Qh3 Rg7 24. Bf1 Rhg8 25. Nd3 Ng6 26. Qxh5 Qe7 27. f4 Na5 28. f5 Qh4 29. Qxh4 Nxh4 30. fxe6 fxe6 31. Rf2 Bc8 32. Nf4 Re7 33. Nh5 Rg5 34. Nf6 Rf7 35. Bf4 Rgg7 36. Bd3 Ng6 37. Bg3 Rf8 38. Bxg6 Rxg6 39. Nd7+ Bxd7 40. Rxf8+ Kb7 41. Bf4 h5 42. Kf2 Nc4 43. Re2 h4 44. Rh8 Rg7 45. Rxh4 Rf7 46. Kg3 Bd8 47. Rh6 Rg7+ 48. Kf3 Bg5 49. Bxg5 Rxg5 50. Kf4 Rg7 51. g4 Rf7+ 52. Rf6 Rxf6+ 53. exf6 e5+ 54. Rxe5 Nxe5 55. Kxe5 1-0

[Event "XII Paracin Festival 2019"]
[Site "Paracin"]
[Date "2019.07.10"]
[Round "7.28"]
[White "Nestorovic, Dejan"]
[Black "Kishan, Gangolli"]
[Result "1/2-1/2"]
[ECO "D58"]
[WhiteElo "2341"]
[BlackElo "2035"]
[Annotator "NA"]
[PlyCount "46"]
[EventDate "2019.07.05"]
[EventType "swiss"]
[EventCountry "SRB"]
[SourceTitle "playchess.com"]
[Source "ChessBase"]
[SourceQuality "1"]
[TimeControl "5400+30"]

1. d4 {[%emt 0:00:00]} Nf6 {[%emt 0:00:00]} 2. c4 {[%emt 0:00:02]} e6 {[%emt 0:00:00]} 3. Nf3 {[%emt 0:00:38]} d5 {[%emt 0:00:04]} 4. Nc3 {[%emt 0:00:48]} Be7 {[%emt 0:00:24]} 5. Bg5 {[%emt 0:00:22]} h6 {[%emt 0:00:25]} 6. Bh4 {[%emt 0:00:21]} O-O {[%emt 0:00:10]} 7. e3 {[%emt 0:00:07]} b6 {[%emt 0:00:12]} 8. Bd3 {[%emt 0:00:45]} Bb7 {[%emt 0:00:22]} 9. O-O {[%emt 0:00:09]} Nbd7 {[%emt 0:01:43]} 10. Qe2 {[%emt 0:01:27]} c5 {[%emt 0:01:18]} 11. Rfd1 {[%emt 0:04:14]} Ne4 {[%emt 0:02:42]} 12. Bg3 {[%emt 0:00:12]} Nxc3 {[%emt 0:16:16]} 13. bxc3 {[%emt 0:00:09]} cxd4 {[%emt 0:00:17]} 14. cxd4 {[%emt 0:00:39]} dxc4 {[%emt 0:00:14]} 15. Bxc4 {[%emt 0:00:11]} Nf6 {[%emt 0:00:25]} 16. Rac1 {[%emt 0:01:52]} Rc8 {[%emt 0:03:25]} 17. Ba6 {[%emt 0:02:25]} Qd5 {[%emt 0:03:10]} 18. Bc7 {[%emt 0:08:00]} Ne4 {[%emt 0:25:14]} 19. Qb5 {[%emt 0:31:05]} Qxb5 {[%emt 0:10:43]} 20. Bxb5 {[%emt 0:00:11]} Ba3 {[%emt 0:01:09]} 21. Rc2 {[%emt 0:10:49]} Bd6 {[%emt 0:00:34]} 22. Rdc1 {[%emt 0:00:16]} Ba3 {[%emt 0:00:17]} 23. Rd1 {[%emt 0:01:48]} Bd6 1/2-1/2

[Event "XII Paracin Festival 2019"]
[Site "Paracin"]
[Date "2019.07.10"]
[Round "7.29"]
[White "O`Donnell, Conor"]
[Black "Ozsoy, Alimert"]
[Result "1/2-1/2"]
[ECO "D17"]
[WhiteElo "2341"]
[BlackElo "2087"]
[Annotator "NA"]
[PlyCount "128"]
[EventDate "2019.07.05"]
[EventType "swiss"]
[EventCountry "SRB"]
[SourceTitle "playchess.com"]
[Source "ChessBase"]
[SourceQuality "1"]
[TimeControl "5400+30"]

1. d4 {[%emt 0:01:03]} d5 {[%emt 0:00:00]} 2. c4 {[%emt 0:00:05]} c6 {[%emt 0:00:00]} 3. Nf3 {[%emt 0:00:07]} Nf6 {[%emt 0:00:00]} 4. Nc3 {[%emt 0:00:12]} dxc4 {[%emt 0:00:02]} 5. a4 {[%emt 0:00:23]} Bf5 {[%emt 0:00:09]} 6. Ne5 {[%emt 0:00:19]} Nbd7 {[%emt 0:00:08]} 7. Nxc4 {[%emt 0:00:14]} Nb6 {[%emt 0:00:12]} 8. Ne5 {[%emt 0:00:09]} a5 {[%emt 0:00:23]} 9. h4 {[%emt 0:00:25]} g6 {[%emt 0:00:33]} 10. h5 {[%emt 0:03:24]} gxh5 {[%emt 0:06:42]} 11. f3 {[%emt 0:05:04]} Bg7 {[%emt 0:09:07]} 12. e4 {[%emt 0:00:27]} Bg6 {[%emt 0:00:24]} 13. Be3 {[%emt 0:03:20]} Nbd7 {[%emt 0:08:08]} 14. Bd3 {[%emt 0:09:03]} e6 {[%emt 0:04:32]} 15. Qd2 {[%emt 0:07:51]} O-O {[%emt 0:11:50]} 16. O-O-O {[%emt 0:02:58]} c5 {[%emt 0:03:22]} 17. Nxd7 {[%emt 0:03:56]} Nxd7 {[%emt 0:04:33]} 18. d5 {[%emt 0:02:51]} exd5 {[%emt 0:09:57]} 19. Nxd5 {[%emt 0:00:16]} Nb6 {[%emt 0:01:23]} 20. Nxb6 {[%emt 0:05:24]} Qxb6 {[%emt 0:00:06]} 21. Qc2 {[%emt 0:03:36]} Qf6 {[%emt 0:01:40]} 22. Bc4 {[%emt 0:03:04]} Rfd8 {[%emt 0:02:28]} 23. Kb1 {[%emt 0:06:20]} Rac8 {[%emt 0:01:11]} 24. Ka2 {[%emt 0:04:48]} Qe5 {[%emt 0:01:25]} 25. Rd2 {[%emt 0:02:21]} Rxd2 {[%emt 0:02:35]} 26. Bxd2 {[%emt 0:04:25]} Qg3 {[%emt 0:06:53]} 27. Be1 {[%emt 0:01:20]} Qc7 {[%emt 0:00:30]} 28. Rf1 {[%emt 0:01:48]} Qc6 {[%emt 0:04:57]} 29. Bd2 {[%emt 0:04:35]} b6 {[%emt 0:01:11]} 30. Re1 {[%emt 0:01:01]} Rd8 {[%emt 0:01:12]} 31. Bg5 {[%emt 0:01:11]} Rd4 {[%emt 0:01:03]} 32. Be3 {[%emt 0:00:42]} Rd8 {[%emt 0:01:48]} 33. Bg5 {[%emt 0:00:23]} Rd4 {[%emt 0:00:22]} 34. Be3 {[%emt 0:00:37]} Rd8 {[%emt 0:00:05]} 35. Qb3 {[%emt 0:03:19]} Qd7 {[%emt 0:01:55]} 36. Bd5 {[%emt 0:01:36]} Kh8 {[%emt 0:01:44]} 37. Bg5 {[%emt 0:04:08]} f6 {[%emt 0:01:29]} 38. Bh4 {[%emt 0:01:01]} Be8 {[%emt 0:01:18]} 39. Qxb6 {[%emt 0:01:21]} Qxa4+ {[%emt 0:00:09]} 40. Kb1 {[%emt 0:00:11]} Rxd5 {[%emt 0:06:04]} 41. b3 {[%emt 0:00:21]} Rd6 {[%emt 0:01:32]} 42. Qxd6 {[%emt 0:01:06]} Qxb3+ {[%emt 0:00:13]} 43. Kc1 {[%emt 0:04:18]} Qb4 {[%emt 0:00:18]} 44. Qd2 {[%emt 0:02:54]} Qb3 {[%emt 0:02:40]} 45. Qb2 {[%emt 0:02:30]} Qc4+ {[%emt 0:00:23]} 46. Kb1 {[%emt 0:00:55]} Qd3+ {[%emt 0:00:02]} 47. Ka1 {[%emt 0:00:41]} Qd6 {[%emt 0:00:18]} 48. Bf2 {[%emt 0:01:48]} Bf7 {[%emt 0:01:14]} 49. g3 {[%emt 0:00:25]} Qd3 {[%emt 0:01:17]} 50. Bxc5 {[%emt 0:02:09]} Qxf3 {[%emt 0:00:20]} 51. Bd4 {[%emt 0:00:40]} Qxg3 {[%emt 0:03:13]} 52. Rf1 {[%emt 0:00:47]} Qd3 {[%emt 0:00:28]} 53. Rg1 {[%emt 0:01:47]} Qxe4 {[%emt 0:02:09]} 54. Bxf6 {[%emt 0:00:14]} Qa4+ {[%emt 0:00:22]} 55. Kb1 {[%emt 0:00:01]} Qa2+ {[%emt 0:00:37]} 56. Qxa2 {[%emt 0:00:28]} Bxa2+ {[%emt 0:00:04]} 57. Kxa2 {[%emt 0:00:06]} Bxf6 {[%emt 0:00:03]} 58. Kb3 {[%emt 0:00:20]} h6 {[%emt 0:00:24]} 59. Ka4 {[%emt 0:00:25]} Bg5 {[%emt 0:00:37]} 60. Kxa5 {[%emt 0:00:16]} Kg7 {[%emt 0:00:05]} 61. Kb5 {[%emt 0:00:22]} Kf6 {[%emt 0:00:17]} 62. Kc4 {[%emt 0:00:24]} Ke5 {[%emt 0:00:12]} 63. Kd3 {[%emt 0:00:38]} Kf4 {[%emt 0:00:26]} 64. Ke2 {[%emt 0:00:34]} h4 {[%emt 0:00:13]} 1/2-1/2

[Event "XII Paracin Festival 2019"]
[Site "Paracin"]
[Date "2019.07.10"]
[Round "7.30"]
[White "Audi Ameya"]
[Black "Ulziikhishigjargal, Ochirkhuyag"]
[Result "1-0"]
[ECO "E55"]
[WhiteElo "2328"]
[BlackElo "2017"]
[Annotator "NA"]
[PlyCount "67"]
[EventDate "2019.07.05"]
[EventType "swiss"]
[EventCountry "SRB"]
[SourceTitle "playchess.com"]
[Source "ChessBase"]
[SourceQuality "1"]
[TimeControl "5400+30"]

1. d4 {[%emt 0:00:00]} Nf6 {[%emt 0:00:00]} 2. c4 {[%emt 0:00:00]} e6 {[%emt 0:00:00]} 3. Nc3 {[%emt 0:00:00]} Bb4 {[%emt 0:00:18]} 4. e3 {[%emt 0:00:16]} d5 {[%emt 0:00:57]} 5. Nf3 {[%emt 0:01:46]} O-O {[%emt 0:00:51]} 6. Bd3 {[%emt 0:00:12]} c5 {[%emt 0:04:31]} 7. O-O {[%emt 0:00:06]} dxc4 {[%emt 0:03:29]} 8. Bxc4 {[%emt 0:00:04]} Nbd7 {[%emt 0:00:49]} 9. a3 {[%emt 0:00:48]} Bxc3 {[%emt 0:02:22]} 10. bxc3 {[%emt 0:00:04]} b6 {[%emt 0:01:29]} 11. Bd3 {[%emt 0:26:51]} Bb7 {[%emt 0:00:44]} 12. Re1 {[%emt 0:00:02]} Ne4 {[%emt 0:05:22]} 13. Bb2 {[%emt 0:00:32]} Rc8 {[%emt 0:05:13]} 14. c4 {[%emt 0:01:07]} Ndf6 {[%emt 0:00:55]} 15. Ne5 {[%emt 0:00:51]} Qe7 {[%emt 0:04:42]} 16. Qa4 {[%emt 0:15:53]} Ba8 {[%emt 0:02:30]} 17. Rad1 {[%emt 0:00:16]} Rfd8 {[%emt 0:01:50]} 18. Bb1 {[%emt 0:08:20]} Nd6 {[%emt 0:07:48]} 19. d5 {[%emt 0:12:35]} exd5 {[%emt 0:05:14]} 20. cxd5 {[%emt 0:00:02]} Nxd5 {[%emt 0:01:15]} 21. Qg4 {[%emt 0:02:29]} Nf6 {[%emt 0:04:43]} 22. Qh4 {[%emt 0:01:17]} Qe6 {[%emt 0:09:07]} 23. f3 {[%emt 0:06:56]} h6 {[%emt 0:00:56]} 24. e4 {[%emt 0:04:42]} Nb5 {[%emt 0:06:01]} 25. Rxd8+ {[%emt 0:01:00]} Rxd8 {[%emt 0:00:05]} 26. Ng4 {[%emt 0:00:09]} Nd4 {[%emt 0:00:51]} 27. e5 {[%emt 0:03:50]} Re8 {[%emt 0:09:22]} 28. Nxf6+ {[%emt 0:06:31]} gxf6 {[%emt 0:00:02]} 29. Bxd4 {[%emt 0:00:04]} cxd4 {[%emt 0:00:08]} 30. Qxh6 {[%emt 0:00:05]} fxe5 {[%emt 0:02:20]} 31. Bh7+ {[%emt 0:02:09]} Kh8 {[%emt 0:00:01]} 32. Bg6+ {[%emt 0:00:01]} Kg8 {[%emt 0:00:01]} 33. Qh7+ {[%emt 0:00:25]} Kf8 {[%emt 0:00:01]} 34. Rxe5 1-0

[Event "XII Paracin Festival 2019"]
[Site "Paracin"]
[Date "2019.07.11"]
[Round "8.2"]
[White "Svetushkin, Dmitry"]
[Black "Song, Raymond"]
[Result "1-0"]
[ECO "B40"]
[WhiteElo "2528"]
[BlackElo "2456"]
[Annotator "ChessBase"]
[PlyCount "82"]
[EventDate "2019.07.05"]
[EventType "swiss"]
[EventCountry "SRB"]
[SourceTitle "playchess.com"]
[Source "ChessBase"]
[SourceQuality "1"]
[TimeControl "5400+30"]

1. e4 {[%emt 0:00:00]} c5 {[%emt 0:00:00]} 2. Nf3 {[%emt 0:00:00]} e6 {[%emt 0:00:00]} 3. Nc3 {[%emt 0:00:23]} Nc6 {[%emt 0:00:00]} 4. Bb5 {[%emt 0:00:37]} Nd4 {[%emt 0:00:00]} 5. O-O {[%emt 0:00:22]} a6 {[%emt 0:00:56]} 6. Bd3 {[%emt 0:00:12]} Nc6 {[%emt 0:04:58]} 7. b3 {[%emt 0:03:04]} d6 {[%emt 0:00:29]} 8. Bb2 {[%emt 0:01:15]} Nf6 {[%emt 0:00:05]} 9. Re1 {[%emt 0:03:04]} Be7 {[%emt 0:06:10]} 10. Bf1 {[%emt 0:02:55]} e5 {[%emt 0:01:55]} 11. Nd5 {[%emt 0:02:55]} Nxd5 {[%emt 0:03:17]} 12. exd5 {[%emt 0:00:10]} Nb4 {[%emt 0:04:05]} 13. c4 {[%emt 0:11:26]} Bf5 {[%emt 0:01:12]} 14. d3 {[%emt 0:22:15]} a5 {[%emt 0:00:42]} 15. a3 {[%emt 0:03:33]} Na6 {[%emt 0:00:05]} 16. Nd2 {[%emt 0:06:07]} O-O {[%emt 0:00:42]} 17. g3 {[%emt 0:01:46]} Bg6 {[%emt 0:00:17]} 18. h4 {[%emt 0:00:22]} f5 {[%emt 0:01:20]} 19. h5 {[%emt 0:01:43]} Be8 {[%emt 0:00:31]} 20. Bh3 {[%emt 0:02:44]} Bg5 {[%emt 0:00:09]} 21. Rf1 {[%emt 0:07:07]} Bh6 {[%emt 0:01:41]} 22. Bc1 {[%emt 0:02:30]} Nc7 {[%emt 0:03:05]} 23. Rb1 {[%emt 0:03:06]} b5 {[%emt 0:00:13]} 24. Bg2 {[%emt 0:00:43]} b4 {[%emt 0:00:30]} 25. a4 {[%emt 0:00:28]} Qf6 {[%emt 0:03:52]} 26. Bf3 {[%emt 0:00:25]} Bd7 {[%emt 0:01:21]} 27. Kg2 {[%emt 0:00:21]} Rae8 {[%emt 0:00:12]} 28. Re1 {[%emt 0:04:16]} Re7 {[%emt 0:04:28]} 29. Rb2 {[%emt 0:01:41]} Ref7 {[%emt 0:00:39]} 30. Nf1 {[%emt 0:00:59]} Ne8 {[%emt 0:02:31]} 31. Nh2 {[%emt 0:01:49]} Bg5 {[%emt 0:01:06]} 32. Be2 {[%emt 0:00:47]} Kh8 {[%emt 0:01:55]} 33. Rc2 {[%emt 0:00:21]} Qh6 {[%emt 0:01:32]} 34. f4 {[%emt 0:00:23]} exf4 {[%emt 0:05:13]} 35. Nf3 {[%emt 0:02:08]} Qxh5 {[%emt 0:08:41]} 36. Ne5 {[%emt 0:01:48]} Qh6 {[%emt 0:00:01]} 37. Nxf7+ {[%emt 0:00:32]} Rxf7 {[%emt 0:00:01]} 38. Rh1 {[%emt 0:01:04]} Qf6 {[%emt 0:00:02]} 39. gxf4 {[%emt 0:05:43]} Bh4 {[%emt 0:11:29]} 40. Bh5 {[%emt 0:00:17]} Rf8 {[%emt 0:00:01]} 41. Qf3 {[%emt 0:01:40]} Qa1 {[%emt 0:23:30]} 1-0